[Event "Norwegian Team Championship 2019"]
[Site "Drammen"]
[Date "2019.05.30"]
[Round "1.15"]
[White "Steinkellner, Rudolf"]
[Black "Dolzhikova, Olga"]
[Result "0-1"]
[ECO "B06"]
[WhiteElo "1699"]
[BlackElo "2210"]
[Annotator "ChessBase"]
[PlyCount "62"]
[EventDate "2019.05.30"]
[EventType "swiss"]
[EventCountry "NOR"]
[SourceTitle "playchess.com"]
[Source "ChessBase"]
[SourceQuality "1"]
[TimeControl "40/5400:1800"]

1. e4 {[%emt 0:00:01]} g6 {[%emt 0:00:04]} 2. Nf3 {[%emt 0:02:35]} Bg7 {[%emt 0:00:06]} 3. Bc4 {[%emt 0:00:43]} c6 {[%emt 0:02:34]} 4. O-O {[%emt 0:02:26]} d5 {[%emt 0:01:09]} 5. exd5 {[%emt 0:00:03]} cxd5 {[%emt 0:00:04]} 6. Bb5+ {[%emt 0:00:48]} Nc6 {[%emt 0:03:03]} 7. c3 {[%emt 0:02:38]} Nf6 {[%emt 0:05:03]} 8. Ne5 {[%emt 0:03:03]} Qc7 {[%emt 0:06:18]} 9. d4 {[%emt 0:05:48]} O-O {[%emt 0:03:09]} 10. Nxc6 {[%emt 0:05:30]} bxc6 {[%emt 0:00:05]} 11. Be2 {[%emt 0:00:49]} c5 {[%emt 0:05:55]} 12. dxc5 {[%emt 0:01:13]} Qxc5 {[%emt 0:00:07]} 13. Be3 {[%emt 0:01:35]} Qc7 {[%emt 0:00:50]} 14. Nd2 {[%emt 0:02:27]} a5 {[%emt 0:10:59]} 15. Qa4 {[%emt 0:00:15]} Bd7 {[%emt 0:01:16]} 16. Qh4 {[%emt 0:04:21]} Rab8 {[%emt 0:07:30]} 17. Bf4 {[%emt 0:03:37]} e5 {[%emt 0:00:13]} 18. Bg5 {[%emt 0:00:03]} Rxb2 {[%emt 0:04:46]} 19. Nf3 {[%emt 0:02:39]} Ne4 {[%emt 0:02:44]} 20. Bd3 {[%emt 0:00:28]} Nxg5 {[%emt 0:03:00]} 21. Nxg5 {[%emt 0:00:50]} h6 {[%emt 0:00:27]} 22. Nh3 {[%emt 0:01:36]} Qxc3 {[%emt 0:01:34]} 23. Ba6 {[%emt 0:02:26]} Rb4 {[%emt 0:01:28]} 24. Qg3 {[%emt 0:00:31]} Qxg3 {[%emt 0:01:28]} 25. fxg3 {[%emt 0:00:04]} e4 {[%emt 0:01:37]} 26. Rac1 {[%emt 0:00:09]} d4 {[%emt 0:01:27]} 27. Nf4 {[%emt 0:00:44]} Bb5 {[%emt 0:02:08]} 28. Bxb5 {[%emt 0:00:20]} Rxb5 {[%emt 0:00:04]} 29. Rc4 {[%emt 0:01:01]} Rfb8 {[%emt 0:02:39]} 30. Rfc1 {[%emt 0:00:19]} Rb1 {[%emt 0:01:19]} 31. Ne2 {[%emt 0:00:36]} Rxc1+ {[%emt 0:00:41]} 0-1

[Event "Norwegian Team Championship 2019"]
[Site "Drammen"]
[Date "2019.05.30"]
[Round "1.16"]
[White "Svensen, Tarjei Joten"]
[Black "Tevasvoll, Svein"]
[Result "1-0"]
[ECO "E43"]
[WhiteElo "2056"]
[BlackElo "1394"]
[Annotator "NA"]
[PlyCount "73"]
[EventDate "2019.05.30"]
[EventType "swiss"]
[EventCountry "NOR"]
[SourceTitle "playchess.com"]
[Source "ChessBase"]
[SourceQuality "1"]
[TimeControl "40/5400:1800"]

1. d4 {[%emt 0:00:03]} Nf6 {[%emt 0:00:49]} 2. c4 {[%emt 0:00:03]} e6 {[%emt 0:00:17]} 3. Nc3 {[%emt 0:00:08]} Bb4 {[%emt 0:00:30]} 4. e3 {[%emt 0:00:38]} b6 {[%emt 0:01:14]} 5. Nf3 {[%emt 0:00:12]} Bb7 {[%emt 0:00:30]} 6. Bd3 {[%emt 0:00:36]} O-O {[%emt 0:02:47]} 7. Qc2 {[%emt 0:00:38]} g6 {[%emt 0:01:57]} 8. Bd2 {[%emt 0:01:37]} d5 {[%emt 0:04:18]} 9. cxd5 {[%emt 0:01:23]} Nxd5 {[%emt 0:00:35]} 10. a3 {[%emt 0:01:27]} Be7 {[%emt 0:01:51]} 11. O-O {[%emt 0:01:38]} Bf6 {[%emt 0:01:52]} 12. e4 {[%emt 0:03:18]} Nxc3 {[%emt 0:01:28]} 13. Bxc3 {[%emt 0:02:46]} Nd7 {[%emt 0:01:42]} 14. Rfd1 {[%emt 0:01:13]} Bg7 {[%emt 0:02:58]} 15. b4 {[%emt 0:03:09]} Re8 {[%emt 0:02:20]} 16. Rac1 {[%emt 0:01:35]} Rc8 {[%emt 0:01:42]} 17. Bb2 {[%emt 0:10:44]} Nf6 {[%emt 0:04:01]} 18. Ne5 {[%emt 0:02:03]} c6 {[%emt 0:07:15]} 19. Qe2 {[%emt 0:04:30]} Nd7 {[%emt 0:03:29]} 20. f4 {[%emt 0:05:16]} Nxe5 {[%emt 0:00:54]} 21. dxe5 {[%emt 0:00:13]} Qe7 {[%emt 0:01:24]} 22. Bc4 {[%emt 0:02:27]} Red8 {[%emt 0:00:43]} 23. f5 {[%emt 0:06:23]} Bh6 {[%emt 0:07:15]} 24. fxe6 {[%emt 0:07:06]} Kf8 {[%emt 0:06:57]} 25. Rf1 {[%emt 0:01:00]} Rd2 {[%emt 0:06:52]} 26. Qg4 {[%emt 0:05:52]} Be3+ {[%emt 0:07:14]} 27. Kh1 {[%emt 0:00:02]} Rf2 {[%emt 0:00:19]} 28. Rxf2 {[%emt 0:00:51]} Bxf2 {[%emt 0:03:22]} 29. Rf1 {[%emt 0:00:02]} fxe6 {[%emt 0:01:46]} 30. Bxe6 {[%emt 0:01:46]} Kg7 {[%emt 0:03:12]} 31. Bxc8 {[%emt 0:00:16]} Bxc8 {[%emt 0:01:36]} 32. Qxc8 {[%emt 0:00:25]} Bh4 {[%emt 0:02:08]} 33. e6+ {[%emt 0:00:53]} Kh6 {[%emt 0:00:19]} 34. Qxc6 {[%emt 0:00:48]} Qd8 {[%emt 0:01:03]} 35. Qd5 {[%emt 0:01:01]} Qc7 {[%emt 0:01:56]} 36. Bc1+ {[%emt 0:01:40]} Kg7 {[%emt 0:00:23]} 37. Rf7+ {[%emt 0:00:04]} 1-0

[Event "Norwegian Team Championship 2019"]
[Site "Drammen"]
[Date "2019.05.30"]
[Round "1.18"]
[White "Bernstein, Jonas August"]
[Black "Stenersen, Gudmund"]
[Result "0-1"]
[ECO "D35"]
[WhiteElo "1766"]
[BlackElo "2183"]
[Annotator "ChessBase"]
[PlyCount "54"]
[EventDate "2019.05.30"]
[EventType "swiss"]
[EventCountry "NOR"]
[SourceTitle "playchess.com"]
[Source "ChessBase"]
[SourceQuality "1"]
[TimeControl "40/5400:1800"]

1. d4 {[%emt 0:00:03]} d5 {[%emt 0:00:17]} 2. c4 {[%emt 0:00:07]} e6 {[%emt 0:00:06]} 3. Nc3 {[%emt 0:00:05]} Nf6 {[%emt 0:00:06]} 4. cxd5 {[%emt 0:00:06]} exd5 {[%emt 0:00:14]} 5. Bg5 {[%emt 0:00:07]} Be7 {[%emt 0:00:14]} 6. e3 {[%emt 0:00:06]} c6 {[%emt 0:00:16]} 7. Bd3 {[%emt 0:00:11]} Nbd7 {[%emt 0:00:13]} 8. Nf3 {[%emt 0:00:41]} Nf8 {[%emt 0:00:36]} 9. Ne5 {[%emt 0:01:44]} Ne6 {[%emt 0:07:20]} 10. Bh4 {[%emt 0:01:33]} Nd7 {[%emt 0:01:21]} 11. Bxe7 {[%emt 0:06:16]} Qxe7 {[%emt 0:00:09]} 12. Nxd7 {[%emt 0:03:55]} Bxd7 {[%emt 0:01:24]} 13. O-O {[%emt 0:03:05]} O-O {[%emt 0:02:09]} 14. Qh5 {[%emt 0:08:03]} Ng5 {[%emt 0:04:50]} 15. h4 {[%emt 0:06:47]} Ne4 {[%emt 0:00:53]} 16. Rac1 {[%emt 0:07:21]} f5 {[%emt 0:02:01]} 17. Bxe4 {[%emt 0:05:12]} fxe4 {[%emt 0:04:55]} 18. g3 {[%emt 0:08:08]} Bh3 {[%emt 0:03:41]} 19. Rfe1 {[%emt 0:01:14]} Qd7 {[%emt 0:00:36]} 20. Qe2 {[%emt 0:02:40]} Rf3 {[%emt 0:03:17]} 21. Nd1 {[%emt 0:02:47]} Raf8 {[%emt 0:00:48]} 22. a3 {[%emt 0:01:27]} Qg4 {[%emt 0:01:46]} 23. Kh2 {[%emt 0:01:23]} g5 {[%emt 0:00:50]} 24. hxg5 {[%emt 0:00:52]} Qh5 {[%emt 0:00:41]} 25. Kg1 {[%emt 0:00:39]} Bg4 {[%emt 0:02:10]} 26. Qd2 {[%emt 0:01:30]} Qh3 {[%emt 0:02:28]} 27. Qb4 {[%emt 0:02:30]} R3f5 {[%emt 0:02:04]} 0-1

[Event "Norwegian Team Championship 2019"]
[Site "Drammen"]
[Date "2019.05.30"]
[Round "1.19"]
[White "Danielsen, Magnus"]
[Black "Grindbakken, Erik"]
[Result "1-0"]
[ECO "C00"]
[WhiteElo "2069"]
[BlackElo "1675"]
[Annotator "NA"]
[PlyCount "103"]
[EventDate "2019.05.30"]
[EventType "swiss"]
[EventCountry "NOR"]
[SourceTitle "playchess.com"]
[Source "ChessBase"]
[SourceQuality "1"]
[TimeControl "40/5400:1800"]

1. e4 {[%emt 0:00:05]} e6 {[%emt 0:00:06]} 2. f4 {[%emt 0:00:21]} c5 {[%emt 0:00:12]} 3. Nf3 {[%emt 0:00:11]} Nc6 {[%emt 0:00:13]} 4. c3 {[%emt 0:00:30]} d5 {[%emt 0:00:10]} 5. e5 {[%emt 0:00:07]} Nh6 {[%emt 0:00:45]} 6. Na3 {[%emt 0:01:06]} a6 {[%emt 0:03:18] C00: French: Unusual White 2nd moves} (6... Nf5 7. Nc2 Be7 8. d4 Bd7 9. Bd3 g6 10. O-O cxd4 11. Bxf5 gxf5 12. Ncxd4 Qb6 13. Rf2 Na5 14. b3 Rc8 {0-1 (45) Izoria,Z (2603)-Smirnov,A (2569) chess.com INT 2019}) 7. Nc2 {[%emt 0:00:25]} b5 {[%emt 0:02:15]} 8. d4 {[%emt 0:03:05]} Be7 {[%emt 0:06:45]} 9. dxc5 $146 {[%emt 0:02:15]} ({Predecessor:} 9. g3 Qb6 10. Bh3 Bd7 11. Be3 a5 12. O-O Rc8 13. Qe2 {1-0 (52) Rothebarth,A (2012)-Silva,L (1800) Cuiaba 2012}) 9... Bxc5 {[%emt 0:00:28]} 10. Be3 {[%emt 0:03:20]} Be7 {[%emt 0:06:34]} 11. Qd2 {[%emt 0:02:37]} Nf5 {[%emt 0:00:26]} 12. Bf2 {[%emt 0:00:21]} Rb8 {[%emt 0:02:59]} 13. b4 {[%emt 0:01:21]} f6 {[%emt 0:11:27]} 14. Ncd4 {[%emt 0:06:26]} Nfxd4 {[%emt 0:00:59]} 15. Bxd4 {[%emt 0:06:33]} O-O {[%emt 0:03:20]} 16. Bd3 {[%emt 0:00:48]} Nxd4 {[%emt 0:01:12]} 17. cxd4 {[%emt 0:00:24]} Bd7 {[%emt 0:02:10]} 18. O-O {[%emt 0:00:13]} Rc8 {[%emt 0:06:10]} 19. Rac1 {[%emt 0:01:15]} Qb6 {[%emt 0:00:59]} 20. a3 {[%emt 0:01:24]} Rxc1 {[%emt 0:01:46]} 21. Rxc1 {[%emt 0:00:13]} Rc8 {[%emt 0:00:10]} 22. Rxc8+ {[%emt 0:00:23]} Bxc8 {[%emt 0:00:07]} 23. Qc2 {[%emt 0:00:10]} Bd7 {[%emt 0:00:56]} 24. Bxh7+ {[%emt 0:00:16]} Kf8 {[%emt 0:00:42]} 25. exf6 {[%emt 0:02:10]} Bxf6 {[%emt 0:00:39]} 26. Qc3 {[%emt 0:08:08]} Ke7 {[%emt 0:07:06]} 27. Bb1 {[%emt 0:02:55]} Kd8 {[%emt 0:02:04]} 28. Kf2 {[%emt 0:00:59]} Qc7 {[%emt 0:02:39]} 29. Qxc7+ {[%emt 0:00:19]} Kxc7 {[%emt 0:00:06]} 30. Ke3 {[%emt 0:00:47]} a5 {[%emt 0:00:53]} 31. Ne5 {[%emt 0:02:14]} Be7 {[%emt 0:00:42]} 32. Nd3 {[%emt 0:00:20]} axb4 {[%emt 0:03:19]} 33. axb4 {[%emt 0:00:10]} g5 {[%emt 0:00:15]} 34. g3 {[%emt 0:07:28]} Be8 {[%emt 0:01:36]} 35. Nc5 {[%emt 0:05:27]} Kd6 {[%emt 0:00:13]} 36. Bh7 {[%emt 0:09:47]} Bf7 {[%emt 0:00:15]} 37. Nd3 {[%emt 0:05:23]} Kc7 {[%emt 0:02:57]} 38. h3 {[%emt 0:03:50]} Kd8 {[%emt 0:01:12]} 39. Ne5 {[%emt 0:01:57]} Be8 {[%emt 0:01:04]} 40. Nd3 {[%emt 0:01:58]} Bf7 $1 {[%emt 0:00:23]} 41. Ne5 {[%emt 0:30:34]} Be8 {[%emt 0:30:23]} 42. fxg5 $16 {[%emt 0:00:00]} Bxg5+ {[%emt 0:00:00]} 43. Kd3 {[%emt 0:00:00]} Be7 {[%emt 0:00:00]} 44. Kc3 {[%emt 0:00:00]} Bf8 {[%emt 0:00:00]} 45. Bg6 {[%emt 0:00:00]} Bd7 $2 {[%emt 0:00:00]} (45... Bxg6 46. Nxg6 Bd6) 46. g4 {[%emt 0:00:00]} Bg7 {[%emt 0:00:00]} 47. g5 {[%emt 0:00:00]} Ke7 {[%emt 0:00:00]} 48. h4 {[%emt 0:00:00]} Kd6 {[%emt 0:00:00]} 49. h5 {[%emt 0:00:00]} Bxe5 {[%emt 0:00:00]} 50. dxe5+ {[%emt 0:00:00]} Kxe5 {[%emt 0:00:00]} 51. h6 {[%emt 0:00:00]} d4+ {[%emt 0:00:00]} 52. Kd2 {[%emt 0:00:00]} 1-0

[Event "Norwegian Team Championship 2019"]
[Site "Drammen"]
[Date "2019.05.30"]
[Round "1.20"]
[White "Marosevic, Tomislav"]
[Black "Bryn, Askild"]
[Result "0-1"]
[ECO "A48"]
[WhiteElo "1613"]
[BlackElo "2024"]
[Annotator "NA RC"]
[PlyCount "114"]
[EventDate "2019.05.30"]
[EventType "swiss"]
[EventCountry "NOR"]
[SourceTitle "playchess.com"]
[Source "ChessBase"]
[SourceQuality "1"]
[TimeControl "40/5400:1800"]

1. d4 {[%emt 0:00:01]} d6 {[%emt 0:00:35]} 2. Nf3 {[%emt 0:00:08]} Nd7 {[%emt 0:00:06]} 3. e4 {[%emt 0:00:33]} g6 {[%emt 0:01:22]} 4. Bg5 {[%emt 0:00:18]} c6 {[%emt 0:00:41]} 5. Nbd2 {[%emt 0:00:37]} Bg7 {[%emt 0:00:14]} 6. c3 {[%emt 0:00:05]} Qc7 {[%emt 0:00:13]} 7. Bc4 {[%emt 0:01:24]} Ngf6 {[%emt 0:00:34]} 8. O-O {[%emt 0:00:36]} O-O {[%emt 0:00:12]} 9. Re1 {[%emt 0:00:18] A48: 1 d4 Nf6 2 Nf3 g6: Torre, London and Colle Systems} (9. a4 h6 10. Be3 e5 11. Ba2 Re8 12. Qc2 Nf8 13. dxe5 dxe5 14. Nc4 Bg4 15. Nh4 Nh5 16. Bc5 Qd8 {½-½ (96) Ivanovic,L (2069)-Livaja,M (2295) Kragujevac 2018}) 9... e5 {[%emt 0:01:39]} 10. Qc2 {[%emt 0:01:39]} h6 {[%emt 0:00:15]} 11. Bxf6 $146 {[%emt 0:04:04]} ({Predecessor:} 11. Bh4 g5 12. dxe5 dxe5 13. Bg3 Nh5 14. Rad1 b5 15. Be2 Nxg3 16. hxg3 {0-1 (60) Luna,M-Balogh,T Bratislava 1993}) 11... Nxf6 {[%emt 0:00:43]} 12. Rad1 {[%emt 0:00:31]} b5 {[%emt 0:08:23]} 13. dxe5 {[%emt 0:03:03]} dxe5 {[%emt 0:00:25]} 14. Bb3 {[%emt 0:00:34]} Qe7 {[%emt 0:03:44]} 15. c4 {[%emt 0:05:29]} b4 {[%emt 0:05:22]} 16. Nf1 {[%emt 0:01:28]} Bg4 {[%emt 0:02:54]} 17. Rd3 {[%emt 0:03:09]} Nd7 {[%emt 0:00:46]} 18. Qd2 {[%emt 0:01:14]} a5 {[%emt 0:06:36]} 19. Ba4 {[%emt 0:01:10]} Nc5 {[%emt 0:10:41]} 20. Bxc6 {[%emt 0:00:08]} Nxd3 {[%emt 0:00:08]} 21. Qxd3 {[%emt 0:00:06]} Rac8 {[%emt 0:00:28]} 22. Bd5 {[%emt 0:00:16]} Be6 {[%emt 0:01:32]} 23. Ne3 {[%emt 0:00:28]} Rfd8 {[%emt 0:01:56]} 24. Rd1 {[%emt 0:01:17]} Kh7 {[%emt 0:00:47]} 25. Qe2 {[%emt 0:02:13]} Qf6 {[%emt 0:09:07]} 26. b3 {[%emt 0:06:11]} h5 {[%emt 0:01:18]} 27. Bxe6 {[%emt 0:00:26]} fxe6 {[%emt 0:00:14]} 28. Ne1 {[%emt 0:04:54]} Rxd1 {[%emt 0:01:05]} 29. Qxd1 {[%emt 0:00:24]} Qd8 {[%emt 0:00:40]} 30. Qc2 {[%emt 0:04:19]} Qd4 {[%emt 0:03:44]} 31. Nf3 {[%emt 0:02:15]} Qa1+ {[%emt 0:00:53]} 32. Nf1 {[%emt 0:00:19]} Bf6 {[%emt 0:00:26]} 33. Qd2 {[%emt 0:03:28]} Rd8 {[%emt 0:00:44]} 34. Qe3 {[%emt 0:00:08]} Rd1 {[%emt 0:04:27]} 35. Qe2 {[%emt 0:01:00]} Rc1 {[%emt 0:03:03]} 36. Qd3 {[%emt 0:01:06]} Rd1 {[%emt 0:03:28]} 37. Qe2 {[%emt 0:01:36]} Rd7 {[%emt 0:03:00]} 38. Qc2 $2 {[%emt 0:01:22]} (38. c5 $17 {keeps fighting.}) 38... g5 {[%emt 0:02:04]} 39. h3 {[%emt 0:04:02]} Qc3 {[%emt 0:01:47]} 40. Qe2 {[%emt 0:00:32]} Qd3 {[%emt 0:01:55]} 41. Nxg5+ {[%emt 0:35:10]} Kg6 {[%emt 0:06:45]} 42. Qxd3 {[%emt 0:00:00]} Rxd3 {[%emt 0:00:11]} 43. Nxe6 {[%emt 0:00:00]} Rd1 {[%emt 0:00:22]} 44. f4 {[%emt 0:00:00]} (44. Nc5 $142) 44... Ra1 {[%emt 0:00:45]} 45. f5+ {[%emt 0:00:00]} Kf7 {[%emt 0:00:08]} 46. g4 {[%emt 0:00:00]} Rxa2 {[%emt 0:00:22]} 47. g5 {[%emt 0:00:00]} a4 {[%emt 0:00:17]} 48. gxf6 {[%emt 0:00:00]} (48. bxa4 $142 b3 49. gxf6) 48... Ra1 $2 {[%emt 0:01:41]} (48... axb3 $19 49. Nc5 b2) 49. Nd8+ $2 {[%emt 0:00:00]} (49. bxa4 $11 b3 50. Ng5+ Kxf6 51. Nf3) 49... Kxf6 {[%emt 0:00:19]} 50. Nc6 {[%emt 0:00:00]} axb3 {[%emt 0:00:23]} 51. Nxb4 {[%emt 0:00:00]} Rd1 $2 {[%emt 0:00:55]} (51... b2 52. Nd5+ Kg5) 52. Nd5+ {[%emt 0:00:00]} Kf7 {[%emt 0:00:51]} 53. Kf2 $19 {[%emt 0:00:00]} (53. Nc3 b2 54. Nxd1) 53... b2 {[%emt 0:00:24]} 54. Nc3 {[%emt 0:00:00]} Rc1 {[%emt 0:00:38]} 55. Nd2 {[%emt 0:02:58]} Rxc3 {[%emt 0:00:11]} 56. Ke1 {[%emt 0:00:05]} Rc1+ {[%emt 0:00:20]} 57. Ke2 {[%emt 0:00:03]} Rc2 {[%emt 0:00:09]} 0-1

[Event "Norwegian Team Championship 2019"]
[Site "Drammen"]
[Date "2019.05.31"]
[Round "2.3"]
[White "Eriksen, Lars Erik"]
[Black "Getz, Nicolai"]
[Result "0-1"]
[ECO "B07"]
[WhiteElo "1923"]
[BlackElo "2380"]
[Annotator "ChessBase"]
[PlyCount "90"]
[EventDate "2019.05.30"]
[EventType "swiss"]
[EventCountry "NOR"]
[SourceTitle "playchess.com"]
[Source "ChessBase"]
[SourceQuality "1"]
[TimeControl "40/5400:1800"]

1. e4 {[%emt 0:00:10]} d6 {[%emt 0:00:09]} 2. d4 {[%emt 0:00:09]} Nf6 {[%emt 0:00:06]} 3. Nc3 {[%emt 0:00:05]} e5 {[%emt 0:00:14]} 4. dxe5 {[%emt 0:01:46]} dxe5 {[%emt 0:00:07]} 5. Qxd8+ {[%emt 0:01:42]} Kxd8 {[%emt 0:00:07]} 6. Bg5 {[%emt 0:02:32]} c6 {[%emt 0:02:15]} 7. f4 {[%emt 0:03:29]} h6 {[%emt 0:05:10]} 8. Bh4 {[%emt 0:02:25]} exf4 {[%emt 0:02:46]} 9. Bxf6+ {[%emt 0:09:29]} gxf6 {[%emt 0:00:13]} 10. Nge2 {[%emt 0:03:02]} Bd6 {[%emt 0:01:59]} 11. O-O-O {[%emt 0:00:25]} Ke7 {[%emt 0:05:01]} 12. Nd4 {[%emt 0:01:36]} Rg8 {[%emt 0:03:40]} 13. Kb1 {[%emt 0:18:11]} Be5 {[%emt 0:01:31]} 14. Nf5+ {[%emt 0:07:04]} Bxf5 {[%emt 0:00:13]} 15. exf5 {[%emt 0:00:02]} Bxc3 {[%emt 0:06:38]} 16. bxc3 {[%emt 0:00:12]} Nd7 {[%emt 0:00:17]} 17. Rd4 {[%emt 0:00:51]} Ne5 {[%emt 0:01:40]} 18. Rxf4 {[%emt 0:00:38]} Rad8 {[%emt 0:00:26]} 19. Kc1 {[%emt 0:00:58]} Rd5 {[%emt 0:01:05]} 20. g3 {[%emt 0:03:16]} Rc5 {[%emt 0:03:40]} 21. Rb4 {[%emt 0:02:21]} b6 {[%emt 0:02:17]} 22. Rh4 {[%emt 0:03:11]} Rxc3 {[%emt 0:07:34]} 23. Rxh6 {[%emt 0:01:23]} Rg4 {[%emt 0:00:38]} 24. Be2 {[%emt 0:01:47]} Ra4 {[%emt 0:02:15]} 25. Kb2 {[%emt 0:01:05]} Re3 {[%emt 0:01:01]} 26. Bd3 {[%emt 0:06:14]} Nxd3+ {[%emt 0:05:20]} 27. cxd3 {[%emt 0:00:07]} Re2+ {[%emt 0:00:04]} 28. Kb3 {[%emt 0:04:56]} Raxa2 {[%emt 0:00:07]} 29. Re1 {[%emt 0:01:36]} Rxe1 {[%emt 0:00:20]} 30. Kxa2 {[%emt 0:00:07]} Rd1 {[%emt 0:00:06]} 31. Rh8 {[%emt 0:01:19]} Rxd3 {[%emt 0:01:37]} 32. g4 {[%emt 0:01:07]} Rd4 {[%emt 0:03:29]} 33. Rc8 {[%emt 0:04:23]} c5 {[%emt 0:02:37]} 34. h3 {[%emt 0:00:06]} Rd2+ {[%emt 0:02:15]} 35. Kb3 {[%emt 0:00:20]} Rd3+ {[%emt 0:00:45]} 36. Kc2 {[%emt 0:00:11]} Rxh3 {[%emt 0:00:28]} 37. Rc7+ {[%emt 0:00:12]} Kf8 {[%emt 0:00:18]} 38. Rxa7 {[%emt 0:00:18]} c4 {[%emt 0:02:31]} 39. Ra8+ {[%emt 0:00:43]} Kg7 {[%emt 0:00:09]} 40. Rc8 {[%emt 0:00:27]} b5 {[%emt 0:00:15]} 41. Rc5 {[%emt 0:01:33]} Rb3 {[%emt 0:01:37]} 42. Rc7 {[%emt 0:00:29]} b4 {[%emt 0:09:40]} 43. Rb7 {[%emt 0:02:53]} Rc3+ {[%emt 0:00:09]} 44. Kb2 {[%emt 0:01:34]} Rg3 {[%emt 0:00:07]} 45. Rxb4 {[%emt 0:00:17]} Rb3+ {[%emt 0:00:07]} 0-1

[Event "Norwegian Team Championship 2019"]
[Site "Drammen"]
[Date "2019.05.31"]
[Round "2.4"]
[White "Galinsky, Timofey"]
[Black "Andersen, Dag"]
[Result "1-0"]
[ECO "A07"]
[WhiteElo "2382"]
[BlackElo "1845"]
[Annotator "ChessBase"]
[PlyCount "73"]
[EventDate "2019.05.30"]
[EventType "swiss"]
[EventCountry "NOR"]
[SourceTitle "playchess.com"]
[Source "ChessBase"]
[SourceQuality "1"]
[TimeControl "40/5400:1800"]

1. Nf3 {[%emt 0:00:07]} d5 {[%emt 0:00:10]} 2. d3 {[%emt 0:00:15]} Nf6 {[%emt 0:00:08]} 3. g3 {[%emt 0:01:04]} c6 {[%emt 0:00:16]} 4. Bg2 {[%emt 0:00:49]} g6 {[%emt 0:00:17]} 5. Nbd2 {[%emt 0:01:53]} Bg7 {[%emt 0:00:22]} 6. e4 {[%emt 0:01:00]} dxe4 {[%emt 0:01:54]} 7. dxe4 {[%emt 0:00:09]} Qc7 {[%emt 0:03:02]} 8. O-O {[%emt 0:01:20]} O-O {[%emt 0:00:16]} 9. Qe2 {[%emt 0:04:02]} c5 {[%emt 0:07:32]} 10. Nc4 {[%emt 0:04:01]} Bg4 {[%emt 0:05:21]} 11. h3 {[%emt 0:06:18]} Bxf3 {[%emt 0:01:33]} 12. Bxf3 {[%emt 0:00:09]} Nfd7 {[%emt 0:00:57]} 13. Bg2 {[%emt 0:02:08]} Nc6 {[%emt 0:00:23]} 14. c3 {[%emt 0:00:40]} Rad8 {[%emt 0:04:55]} 15. f4 {[%emt 0:03:33]} a6 {[%emt 0:03:35]} 16. a4 {[%emt 0:00:38]} e6 {[%emt 0:07:57]} 17. a5 {[%emt 0:05:44]} Rfe8 {[%emt 0:04:17]} 18. Be3 {[%emt 0:03:33]} Bf8 {[%emt 0:06:44]} 19. g4 {[%emt 0:02:39]} Ncb8 {[%emt 0:06:37]} 20. g5 {[%emt 0:02:16]} b5 {[%emt 0:01:01]} 21. axb6 {[%emt 0:00:06]} Nxb6 {[%emt 0:00:37]} 22. Ne5 {[%emt 0:01:06]} h5 {[%emt 0:04:06]} 23. gxh6 {[%emt 0:03:04]} Bxh6 {[%emt 0:00:40]} 24. h4 {[%emt 0:06:39]} N6d7 {[%emt 0:04:02]} 25. Nc4 {[%emt 0:04:45]} Nf6 {[%emt 0:01:20]} 26. e5 {[%emt 0:06:33]} Nh5 {[%emt 0:04:16]} 27. Qf2 {[%emt 0:01:06]} Bf8 {[%emt 0:00:29]} 28. Be4 {[%emt 0:05:50]} Rd7 {[%emt 0:06:05]} 29. Kh2 {[%emt 0:00:50]} Be7 {[%emt 0:02:03]} 30. Rg1 {[%emt 0:00:29]} Ng7 {[%emt 0:00:24]} 31. Qf3 {[%emt 0:05:35]} Red8 {[%emt 0:03:38]} 32. h5 {[%emt 0:01:23]} gxh5 {[%emt 0:01:54]} 33. Qxh5 {[%emt 0:00:59]} f5 {[%emt 0:00:18]} 34. Rxg7+ {[%emt 0:00:16]} Kxg7 {[%emt 0:00:21]} 35. Rg1+ {[%emt 0:00:06]} Kf8 {[%emt 0:00:11]} 36. Qh8+ {[%emt 0:00:12]} Kf7 {[%emt 0:00:07]} 37. Rg7# {[%emt 0:00:08]} 1-0

[Event "Norwegian Team Championship 2019"]
[Site "Drammen"]
[Date "2019.05.31"]
[Round "2.5"]
[White "Madsen, Dag"]
[Black "Haldorsen, Benjamin"]
[Result "0-1"]
[ECO "D24"]
[WhiteElo "2262"]
[BlackElo "2437"]
[Annotator "ChessBase"]
[PlyCount "66"]
[EventDate "2019.05.30"]
[EventType "swiss"]
[EventCountry "NOR"]
[SourceTitle "playchess.com"]
[Source "ChessBase"]
[SourceQuality "1"]
[TimeControl "40/5400:1800"]

1. Nf3 {[%emt 0:00:03]} d5 {[%emt 0:00:26]} 2. d4 {[%emt 0:00:11]} Nf6 {[%emt 0:00:22]} 3. c4 {[%emt 0:00:10]} dxc4 {[%emt 0:00:34]} 4. Nc3 {[%emt 0:00:51]} a6 {[%emt 0:00:22]} 5. e4 {[%emt 0:00:27]} b5 {[%emt 0:00:04]} 6. e5 {[%emt 0:00:30]} Nd5 {[%emt 0:00:05]} 7. a4 {[%emt 0:00:36]} Bb7 {[%emt 0:00:04]} 8. e6 {[%emt 0:00:58]} fxe6 {[%emt 0:00:05]} 9. Be2 {[%emt 0:00:58]} Nxc3 {[%emt 0:00:19]} 10. bxc3 {[%emt 0:00:06]} Qd5 {[%emt 0:00:11]} 11. Ng5 {[%emt 0:05:56]} Qxg2 {[%emt 0:00:21]} 12. Rf1 {[%emt 0:00:16]} Nd7 {[%emt 0:05:50]} 13. Nxe6 {[%emt 0:03:45]} Rc8 {[%emt 0:00:24]} 14. axb5 {[%emt 0:08:15]} axb5 {[%emt 0:00:54]} 15. Be3 {[%emt 0:12:58]} Nf6 {[%emt 0:06:20]} 16. Qb1 {[%emt 0:05:55]} Bc6 {[%emt 0:35:37]} 17. Bf4 {[%emt 0:15:27]} Nd5 {[%emt 0:09:35]} 18. Be5 {[%emt 0:00:18]} Nxc3 {[%emt 0:07:01]} 19. Qf5 {[%emt 0:12:54]} g6 {[%emt 0:04:36]} 20. Bxh8 {[%emt 0:11:19]} gxf5 {[%emt 0:01:47]} 21. Bh5+ {[%emt 0:00:10]} Qg6 {[%emt 0:00:51]} 22. Bxg6+ {[%emt 0:00:07]} hxg6 {[%emt 0:00:01]} 23. Be5 {[%emt 0:01:34]} b4 {[%emt 0:01:46]} 24. Nxc7+ {[%emt 0:01:48]} Kf7 {[%emt 0:00:07]} 25. Kd2 {[%emt 0:00:24]} Bg7 {[%emt 0:01:16]} 26. Bxg7 {[%emt 0:00:09]} Kxg7 {[%emt 0:00:37]} 27. Ne6+ {[%emt 0:00:06]} Kf6 {[%emt 0:00:46]} 28. Nc5 {[%emt 0:00:16]} Rd8 {[%emt 0:01:04]} 29. Ke3 {[%emt 0:00:29]} g5 {[%emt 0:00:25]} 30. Ra6 {[%emt 0:00:46]} Rd6 {[%emt 0:02:23]} 31. h4 {[%emt 0:00:52]} gxh4 {[%emt 0:00:47]} 32. f4 {[%emt 0:00:05]} h3 {[%emt 0:00:24]} 33. Rf2 {[%emt 0:00:04]} Nd1+ {[%emt 0:00:05]} 0-1